Cogmind - Beta 12 X4 @@@ ROGUE MODE // 2023.01.21 @ 00:53:41 Player: Lunatic Blue Result: Destroyed by G-73 Enforcer with Phase Gun Performance ------------- Evolutions (9) 4500 Regions Visited (22) 4400 Robots Destroyed (216) 1080 Value Destroyed (10002) 10002 Prototype IDs (30) 600 Alien Tech Used (0) 0 Bonus (6051) 6051 TOTAL SCORE: 26633 Bonus ------- High Alert Combat Kills 264 Follower Combat Kills 1670 Entered DSFs 1000 Met Imprinter 300 Destroyed Z-Imprinter 1000 Triggered Deep Caves Wall 500 Exposed GOLEM Chamber 500 Met Zhirov 300 A7 Reached Mainframe 300 Met R17 at Cetus 500 Read Decrypted Archives 300 Friendly Fire -583 Cogmind --------- Core Integrity 0/1600 Matter 139/300 Energy 96/100 System Corruption 11% Temperature Cool (9) Movement Core (50) Location -1/Access Parts ------- > --- POWER (3) -------- (None) > --- PROPULSION (8) --- (None) > --- UTILITY (12) ----- Terrain Scan Processor Hacking Suite > --- WEAPON (2) ------- (None) > --- INVENTORY (5) ---- Light Quantum Reactor Trap Extractor (2/4 Dirty Bomb) Peak State ------------ > --- POWER ------------ Assembled Flux Generator > --- PROPULSION ------- Armored Heavy Treads Assembled Alloy Leg Assembled Alloy Leg > --- UTILITY ---------- Assembled Nanovents Assembled Nanovents Huge Storage Unit Assembled Biocell Array Assembled Combat Suite Improved Particle Charger Transmission Jammer Centrium Medium Armor Plating Assembled Alloy Armor Hacking Suite GOLEM Unit > --- WEAPON ----------- Assembled Focal Cannon Assembled Focal Cannon > --- INVENTORY -------- Light Antimatter Reactor Light Antimatter Reactor Armored Heavy Treads Armored Heavy Treads Experimental Heat Sink Zionite Biocell Advanced Sensor Array Advanced Terrain Scanner Terrain Scan Processor Centrium Medium Armor Plating Centrium Medium Armor Plating Trap Extractor Bomb Factory No. 2 Improved Datajack Advanced Remote Datajack Impact Mace CR-A16's Pointy Stick GAL Module [Rating: 165] Favorites ----------- Power Assembled Flux Generator Engine Cooled Ion Engine Power Core Micro Nuclear Core Reactor Assembled Flux Generator Propulsion Assembled Alloy Leg Treads Light Treads Leg Assembled Alloy Leg Wheel Armored Huge Wheel Flight Unit Field Propulsion Array Utility Huge Storage Unit Device Improved Heat Sink Storage Huge Storage Unit Processor Experimental Targeting Computer Hackware Hacking Suite Protection Light Armor Plating Weapon Assembled Focal Cannon Energy Gun Improved Spread Laser Energy Cannon Assembled Focal Cannon Ballistic Gun Light Assault Rifle Launcher Heavy Missile Launcher Impact Weapon Impact Mace Special Melee Weapon Datajack Build | -11 -10 -9 -9 -8 -7 -7 -7 -7 -7 -6 -6 -6 -6 -6 -6 -5 -4 -4 -3 -2 -2 -1 ------- Run | Scr Mat Mat Sto Mat Fac Low Low Zio Dee Pro Fac Ext Cet Arc Hub Fac Fac DSF Res Res DSF Acc Slots Evolved 18 | . . 2 . 2 2 . . . . . 2 . . . . 2 2 . 2 2 . 2 Power 2 | . . . . . 1 . . . . . . . . . . 1 . . . . . . Propulsion 6 | . . . . 1 . . . . . . . . . . . 1 . . . 2 . 2 Utility 10 | . . 2 . 1 1 . . . . . 2 . . . . . 2 . 2 . . . Weapon . | . . . . . . . . . . . . . . . . . . . . . . . Parts Attached 251 | 2 8 20 20 9 24 21 3 . 42 13 6 9 1 . 4 9 3 3 40 3 2 9 Power 28 | . 2 3 . . 2 1 1 . 5 . . . . . 2 . . . 10 . . 2 Engine 6 | . 1 3 . . 1 1 . . . . . . . . . . . . . . . . Core 3 | . 1 . . . 1 . 1 . . . . . . . . . . . . . . . Reactor 19 | . . . . . . . . . 5 . . . . . 2 . . . 10 . . 2 Propulsion 51 | 2 2 3 5 2 4 3 . . 4 2 2 1 . . . 2 . 3 7 2 2 5 Treads 25 | 1 1 2 2 1 1 2 . . 4 2 1 . . . . . . 3 5 . . . Leg 6 | . . . . . . . . . . . 1 1 . . . 2 . . 2 . . . Wheel 9 | 1 1 1 2 1 2 1 . . . . . . . . . . . . . . . . Hover . | . . . . . . . . . . . . . . . . . . . . . . . Flight 11 | . . . 1 . 1 . . . . . . . . . . . . . . 2 2 5 Utility 100 | . 3 5 4 3 10 7 . . 17 6 4 8 1 . 2 7 3 . 17 1 . 2 Device 38 | . . 3 1 . 2 3 . . 7 3 2 1 . . 1 3 1 . 9 . . 2 Storage 6 | . 2 . . . . . . . 2 . 1 . . . . . . . 1 . . . Processor 12 | . . 1 . . 2 2 . . . 1 . 1 . . . . . . 5 . . . Hackware 10 | . . . . 1 3 . . . . . . 2 . . 1 1 1 . . 1 . . Protection 34 | . 1 1 3 2 3 2 . . 8 2 1 4 1 . . 3 1 . 2 . . . Artifact . | . . . . . . . . . . . . . . . . . . . . . . . Weapon 72 | . 1 9 11 4 8 10 2 . 16 5 . . . . . . . . 6 . . . Energy Gun 24 | . . 6 4 . 4 5 1 . 4 . . . . . . . . . . . . . Energy Cannon 18 | . . . 5 3 1 . . . 5 . . . . . . . . . 4 . . . Ballistic Gun 3 | . 1 2 . . . . . . . . . . . . . . . . . . . . Ballistic Cannon . | . . . . . . . . . . . . . . . . . . . . . . . Launcher 15 | . . 1 . 1 1 2 1 . 4 4 . . . . . . . . 1 . . . Special Weapon . | . . . . . . . . . . . . . . . . . . . . . . . Impact Weapon 11 | . . . 1 . 2 3 . . 3 1 . . . . . . . . 1 . . . Slashing Weapon . | . . . . . . . . . . . . . . . . . . . . . . . Piercing Weapon . | . . . . . . . . . . . . . . . . . . . . . . . Special Melee Weapon 1 | . . . 1 . . . . . . . . . . . . . . . . . . . Unidentified Prototypes 20 | . . 3 3 . 4 1 . . 8 . . . 1 . . . . . . . . . Parts Lost 120 | . 5 4 2 2 4 7 . . 6 6 1 4 . 1 5 5 . 7 44 . 2 15 Power 19 | . 2 1 . . . 1 . . 1 . . 1 . . 1 . . 1 10 . . 1 Propulsion 31 | . 2 . 1 . 1 2 . . 3 1 1 . . . 1 2 . 3 6 . 2 6 Utility 45 | . . 2 . 2 1 3 . . 2 2 . 1 . . 2 2 . 2 18 . . 8 Weapon 25 | . 1 1 1 . 2 1 . . . 3 . 2 . 1 1 1 . 1 10 . . . Highest Loss Streak 12 | . 2 2 2 1 3 4 . . 3 2 1 1 . 1 3 4 . 3 12 . 2 8 To Critical Strikes 1 | . . . . . . . . . . . . . . . . . . . . . . 1 Average Slot Usage (%) 88 | . 95 97 98 100 91 88 92 92 88 83 84 85 86 86 88 80 83 81 78 45 43 40 Engine 3 | . 4 10 11 9 13 5 4 . . . . . . . . . . . . . . . Core 2 | . 8 . . . . 7 10 15 2 . . . . . . . . . . . . . Reactor 4 | . . . . . . . . . 9 7 6 6 6 6 8 10 10 9 9 . . 2 Treads 6 | . 14 11 11 9 7 6 7 7 11 6 3 . . . . . . 5 4 . . . Leg 6 | . . . . . . . . . 2 15 14 20 20 20 20 20 15 10 6 . . . Wheel 4 | . 14 11 11 18 7 6 7 7 3 . . . . . . . . . . . . . Device 14 | . . 15 22 18 14 18 15 15 13 12 13 7 6 6 11 16 24 19 20 9 8 6 Storage 10 | . 14 11 11 9 7 7 7 7 9 15 13 13 13 13 13 11 10 10 8 . . . Processor 8 | . . 10 1 . 7 15 15 15 8 7 6 8 13 13 13 . . . 10 17 17 15 Hackware 2 | . . . . 9 11 . . . . . . 3 . . . . 2 5 4 7 8 7 Protection 6 | . 10 4 7 9 2 2 7 7 9 2 12 11 13 13 7 5 8 9 2 . . . Energy Gun 4 | . . 20 5 . 8 14 15 15 1 . . . . . . . . . . . . . Energy Cannon 7 | . . . 14 18 5 . . . 8 14 13 12 13 13 12 11 10 8 8 . . . Ballistic Gun 1 | . 28 1 . . . . . . . . . . . . . . . . . . . . Naked Turns . | . . . . . . . . . . . . . . . . . . . . . . . Heaviest Build 205 | 13 90 99 101 105 115 109 113 113 159 159 162 177 165 164 164 205 188 188 180 2 2 20 Greatest Support 120 | 16 16 20 12 24 28 28 28 28 76 60 80 85 85 85 85 100 100 100 120 32 40 62 Greatest Overweight (x) 9 | . 8 9 8 8 8 3 4 4 4 2 2 2 1 1 2 2 1 5 3 . . . Average Overweight (x) 3 | . 1 7 7 4 3 3 3 4 3 2 2 1 1 1 1 1 1 2 1 . . . Largest Inventory Capacity 25 | 8 25 25 25 25 25 25 25 25 25 25 25 25 25 25 25 25 25 25 25 25 5 5 Average Capacity 24 | 8 12 25 25 25 25 25 25 25 25 25 25 25 25 25 25 25 25 25 25 7 5 5 Most Carried 25 | 6 11 19 25 25 25 25 17 24 25 24 21 20 23 23 23 20 18 21 21 14 5 5 Average Carried 19 | 4 7 14 23 24 24 22 16 21 22 21 18 18 21 23 20 17 17 18 15 5 5 2 Final Capacity 25 | 8 25 25 25 25 25 25 25 25 25 25 25 25 25 25 25 25 25 25 25 5 5 5 Final Carried 25 | 4 11 19 25 25 24 16 17 24 24 18 20 20 23 23 19 17 18 21 14 5 5 2 Class Distribution -------------------- 39% | Scavenger-Mutant 32% | Golem 23% | Mutant Dominant Class ---------------- Mutant | -10/Materials Scavenger-Mutant | -9/Materials Mutant | -9/Storage Scavenger-Mutant | -8/Materials Scavenger-Mutant | -7/Factory Mutant | -7/Lower Caves Mutant | -7/Lower Caves Scavenger-Mutant | -7/Zion Mutant | -7/Deep Caves Golem | -6/Proximity Caves Golem | -6/Factory Golem | -6/Extension Golem | -6/Cetus Golem | -6/Archives Golem | -6/Hub_04(d) Golem | -5/Factory Golem | -4/Factory Golem | -4/DSF Scavenger-Mutant | -3/Research Hacker-Mutant | -2/Research Hacker-Mutant | -2/DSF Hacker-Mutant | -1/Access Resources | -11 -10 -9 -9 -8 -7 -7 -7 -7 -7 -6 -6 -6 -6 -6 -6 -5 -4 -4 -3 -2 -2 -1 ----------- Run | Scr Mat Mat Sto Mat Fac Low Low Zio Dee Pro Fac Ext Cet Arc Hub Fac Fac DSF Res Res DSF Acc Matter Collected 2844 | 220 183 233 200 135 221 284 60 21 531 172 55 75 20 . 25 73 . 25 260 . . 51 Remotely . | . . . . . . . . . . . . . . . . . . . . . . . Salvage Created 11119 | . 526 868 891 323 624 258 23 . 931 579 461 600 99 . 278 866 . 634 3158 . . . Parts 499 | . 35 53 39 12 32 4 1 . 13 11 18 25 5 . 15 43 . 35 158 . . . Haulers Intercepted 10 | . . 1 6 1 1 . . . . . . . . . . . . . 1 . . . Recyclers Shooed 6 | . . 2 3 1 . . . . . . . . . . . . . . . . . . Parts Field Recycled . | . . . . . . . . . . . . . . . . . . . . . . . Retrieved Matter . | . . . . . . . . . . . . . . . . . . . . . . . Parts Self-Destructed 13 | . . . . . . 2 . . . 11 . . . . . . . . . . . . Prevented . | . . . . . . . . . . . . . . . . . . . . . . . Kills | -11 -10 -9 -9 -8 -7 -7 -7 -7 -7 -6 -6 -6 -6 -6 -6 -5 -4 -4 -3 -2 -2 -1 ------- Run | Scr Mat Mat Sto Mat Fac Low Low Zio Dee Pro Fac Ext Cet Arc Hub Fac Fac DSF Res Res DSF Acc Combat Hostiles Destroyed 208 | . 11 19 8 6 13 9 2 . 46 16 7 8 1 . 5 10 . 9 38 . . . Melee 5 | . . . . . 1 . . . 1 1 . . . . . . . . 2 . . . Guns 40 | . 11 16 7 . 2 3 . . 1 . . . . . . . . . . . . . Cannons 102 | . . . 1 3 10 . . . 5 10 7 8 1 . 5 10 . 9 33 . . . AOE 55 | . . 2 . 2 . 5 2 . 37 5 . . . . . . . . 2 . . . Classes Destroyed 23 | . 2 5 2 1 1 3 1 . 4 . 1 1 . . . . . 2 . . . . Worker 4 | . . 2 . . . . . . . . . . . . . . . . 2 . . . Builder 10 | . . . 3 . . . . . . . 1 . . . . 3 . . 3 . . . Tunneler 2 | . . . . . . . . . . . 1 . . . . . . . 1 . . . Hauler 10 | . . 1 6 1 1 . . . . . . . . . . . . . 1 . . . Recycler 5 | . . . 2 . . . . . . . . . . . . 1 . . 2 . . . Operator 2 | . . 1 . . 1 . . . . . . . . . . . . . . . . . Watcher 13 | . 2 3 . . 1 . . . . . . 1 2 . . 1 . . 3 . . . Swarmer 12 | . . 2 . . 4 . 2 . . 3 . . . . 1 . . . . . . . Grunt 79 | . 11 13 6 3 5 2 . . . 7 7 4 . . 2 3 . 2 14 . . . Brawler 3 | . . . . . . 1 . . . 1 . . . . . 1 . . . . . . Duelist 5 | . . . . . . . . . . 4 . . . . . . . . 1 . . . Sentry 21 | . . 4 2 2 2 1 . . . 1 . 2 . . 2 1 . . 4 . . . Specialist 4 | . . . . . . . . . . . . . . . . . . 2 2 . . . Hunter 9 | . . . . 1 . . . . . . . . . . . . . 2 6 . . . Programmer 18 | . . . . . 2 . . . . . . . . . . 4 . 2 10 . . . Heavy 2 | . . . . . . . . . . . . . . . . . . 1 1 . . . Behemoth 3 | . . . . . . . . . . . . 2 . . . 1 . . . . . . Cetus Guard 1 | . . . . . . . . . . . . . 1 . . . . . . . . . Z-Light 2 | . . . . . . . . . 2 . . . . . . . . . . . . . Tinkerer 1 | . . . . . . . 1 . . . . . . . . . . . . . . . Assembler 2 | . . . . . . . . . 2 . . . . . . . . . . . . . Assembled 40 | . . . . . . . . . 40 . . . . . . . . . . . . . Golem 3 | . . . . . . . . . 3 . . . . . . . . . . . . . Thug 1 | . . . . . . 1 . . . . . . . . . . . . . . . . Savage 1 | . . . . . . . . . 1 . . . . . . . . . . . . . Butcher 3 | . . . . . . 3 . . . . . . . . . . . . . . . . Mutant 2 | . . . . . . 2 . . . . . . . . . . . . . . . . Best Kill Streak 38 | . 5 5 5 2 7 4 2 . 38 5 3 2 1 . 4 7 . 4 7 . . . Combat Bots Only 33 | . 4 4 2 2 7 4 2 . 33 5 3 2 1 . 4 4 . 4 6 . . . Max Kills in Single Turn 25 | . 1 2 2 1 1 3 1 . 25 2 1 1 1 . 1 2 . 1 2 . . . Gunslinging . | . . . . . . . . . . . . . . . . . . . . . . . Exploded 25 | . . 2 . 1 . 3 1 . 25 2 . . . . . . . . 1 . . . Melee 1 | . . . . . 1 . . . 1 1 . . . . . . . . 1 . . . Uniques/NPCs Destroyed 1 | . . . . . . . . . 1 . . . . . . . . . . . . . Z-Imprinter (-7/Deep Caves) Combat | -11 -10 -9 -9 -8 -7 -7 -7 -7 -7 -6 -6 -6 -6 -6 -6 -5 -4 -4 -3 -2 -2 -1 -------- Run | Scr Mat Mat Sto Mat Fac Low Low Zio Dee Pro Fac Ext Cet Arc Hub Fac Fac DSF Res Res DSF Acc Damage Taken 25808 | . 822 939 501 513 894 801 89 . 1458 2159 321 1373 440 30 843 985 . 1667 8901 49 451 2572 Core 4288 | . 196 139 40 90 145 98 . . 189 224 16 104 44 . 86 150 . 64 919 26 142 1616 Absorbed by Shields 108 | . . . . . . . . . . . . 32 76 . . . . . . . . . Reduced by Siege Mode 231 | . . . . . . . . . . . . . . . . . . . 231 . . . Redirected to Shielding 149 | . . . . . . . . . 149 . . . . . . . . . . . . . Core Remaining (%) 63 | 100 21 . 55 83 . . . . . 6 . . . . 70 85 . 94 29 . 88 . Volleys Fired 674 | . 53 75 61 32 32 14 4 . 48 36 16 48 10 . 12 42 . 55 136 . . . Largest 2 | . 2 2 2 2 2 2 2 . 2 2 2 2 2 . 2 2 . 2 2 . . . Hottest 226 | . 40 112 136 150 150 150 150 . 150 50 50 50 50 . 50 50 . 50 226 . . . Shots Fired 1125 | . 106 148 120 61 60 24 6 . 54 50 32 71 20 . 16 70 . 74 213 . . . Gun 360 | . 106 145 72 . 12 19 4 . 2 . . . . . . . . . . . . . Cannon 734 | . . . 48 58 48 . . . 44 46 32 71 20 . 16 70 . 74 207 . . . Launcher 31 | . . 3 . 3 . 5 2 . 8 4 . . . . . . . . 6 . . . Special . | . . . . . . . . . . . . . . . . . . . . . . . Kinetic 109 | . 106 3 . . . . . . . . . . . . . . . . . . . . Thermal 941 | . . 142 120 58 60 19 4 . 2 46 32 71 20 . 16 70 . 74 207 . . . Explosive 31 | . . 3 . 3 . 5 2 . 8 4 . . . . . . . . 6 . . . Electromagnetic 44 | . . . . . . . . . 44 . . . . . . . . . . . . . Robot Hit Streak 40 | . 8 16 10 10 19 18 14 . 17 22 11 35 25 . 38 40 . 15 21 . . . Robot Miss Streak 6 | . 4 4 5 6 5 2 1 . 3 2 1 2 . . . 3 . 2 3 . . . Penetration Max . | . . . . . . . . . . . . . . . . . . . . . . . Secondary Targets 4 | . 3 1 . . . . . . . . . . . . . . . . . . . . Max Gunslinging Chain 1 | . 1 1 . . . . . . . . . . . . . . . . . . . . Shots Hit Robots 801 | . 74 103 68 33 47 23 6 . 43 42 19 53 18 . 13 39 . 56 164 . . . Core Hits 499 | . 32 38 27 12 34 34 7 . 123 34 13 14 6 . 9 20 . 17 79 . . . Critical Kills 1 | . . . . . . . . . . . . . . . . . . . 1 . . . Critical Parts Destroyed 5 | . 1 . . . 1 1 . . 1 . . . . . . . . . 1 . . . Critical Strikes 22 | . 1 13 3 . 1 1 . . 1 . . . . . . . . . 2 . . . Burn 16 | . . 13 3 . . . . . . . . . . . . . . . . . . . Meltdown 1 | . . . . . . . . . . . . . . . . . . . 1 . . . Destroy 1 | . 1 . . . . . . . . . . . . . . . . . . . . . Smash 4 | . . . . . 1 1 . . 1 . . . . . . . . . 1 . . . Melee Attacks 42 | . . . 5 . 4 7 . . 20 2 . . . . . . . . 4 . . . Impact 40 | . . . 3 . 4 7 . . 20 2 . . . . . . . . 4 . . . Slashing . | . . . . . . . . . . . . . . . . . . . . . . . Piercing . | . . . . . . . . . . . . . . . . . . . . . . . Sneak Attacks 7 | . . . 3 . 1 . . . 3 . . . . . . . . . . . . . Combat Hostiles . | . . . . . . . . . . . . . . . . . . . . . . . Follow-up Attacks . | . . . . . . . . . . . . . . . . . . . . . . . Damage Inflicted 33090 | . 645 1718 1167 1127 1237 1709 299 . 4077 2786 1012 2561 752 . 595 2022 . 2718 8650 . . 15 Guns 3652 | . 645 1482 737 . 260 401 115 . 12 . . . . . . . . . . . . . Cannons 21513 | . . . 368 850 773 . . . 693 1668 957 2557 752 . 577 2022 . 2718 7578 . . . Explosions 6712 | . . 236 . 277 42 1183 184 . 2866 1010 55 . . . . . . . 859 . . . Melee 1100 | . . . 62 . 162 125 . . 506 101 . . . . . . . . 144 . . . Ramming 113 | . . . . . . . . . . 7 . 4 . . 18 . . . 69 . . 15 Kinetic 661 | . 645 16 . . . . . . . . . . . . . . . . . . . . Thermal 23853 | . . 1466 1105 850 1075 401 115 . 12 1668 957 2557 752 . 577 2022 . 2718 7578 . . . Explosive 6670 | . . 236 . 277 . 1183 184 . 2866 1010 55 . . . . . . . 859 . . . Electromagnetic 693 | . . . . . . . . . 693 . . . . . . . . . . . . . Impact 1100 | . . . 62 . 162 125 . . 506 101 . . . . . . . . 144 . . . Slashing . | . . . . . . . . . . . . . . . . . . . . . . . Piercing . | . . . . . . . . . . . . . . . . . . . . . . . Highest Corruption 21 | . . . . . 1 1 1 1 . . . . . . . 6 . 5 21 . 2 11 Average Corruption 3 | . . . . . 1 1 1 1 . . . . . . . 5 . 3 7 . 1 5 Corruption Purged . | . . . . . . . . . . . . . . . . . . . . . . . Corruption Blocked . | . . . . . . . . . . . . . . . . . . . . . . . Effects 66 | . . . . . 6 7 3 1 . . . . . . . 6 . 6 30 . . 7 Message Errors 14 | . . . . . 2 2 . . . . . . . . . 1 . 2 6 . . 1 Matter Fused 15 | . . . . . 2 2 2 1 . . . . . . . 1 . 1 5 . . 1 Heat Flow Errors 10 | . . . . . . 1 1 . . . . . . . . 1 . 1 5 . . 1 Energy Discharges 11 | . . . . . 1 2 . . . . . . . . . 1 . . 5 . . 2 Parts Rejected 2 | . . . . . . . . . . . . . . . . . . . 2 . . . Data Loss (minor) 5 | . . . . . 1 . . . . . . . . . . 1 . 1 1 . . 1 Data Loss (major) 2 | . . . . . . . . . . . . . . . . . . . 1 . . 1 Misfires 1 | . . . . . . . . . . . . . . . . . . . 1 . . . Alerts 1 | . . . . . . . . . . . . . . . . 1 . . . . . . Weapon Failures 5 | . . . . . . . . . . . . . . . . . . 1 4 . . . Overload Shots . | . . . . . . . . . . . . . . . . . . . . . . . Overflow Damage 1455 | . . 9 9 25 81 71 40 . 248 143 . 44 . . . 140 . 140 505 . . . Projectiles 820 | . . . 9 25 10 . . . 62 94 . 44 . . . 90 . 140 346 . . . Explosions 315 | . . 9 . . 20 26 40 . 49 10 . . . . . 50 . . 111 . . . Melee 320 | . . . . . 51 45 . . 137 39 . . . . . . . . 48 . . . Knockbacks 2 | . . . . . 1 . . . . . . . . . . . . . 1 . . . Impact 2 | . . . . . 1 . . . . . . . . . . . . . 1 . . . Kinetic . | . . . . . . . . . . . . . . . . . . . . . . . Secondary . | . . . . . . . . . . . . . . . . . . . . . . . Self-Inflicted Damage 1017 | . . . . . 133 148 . . 41 140 32 . . . . 88 . . 428 . . 7 Shots 21 | . . . . . 2 3 . . 2 6 1 . . . . 1 . . 6 . . . Rammed 4 | . . . . . . . . . . . . . . . . . . . 2 . . 2 Targets Rammed 14 | . . . . . . . . . . 1 . 2 . . 3 . . . 6 . . 2 Kicked 7 | . . . . . . . . . . 1 . 2 . . 3 . . . 1 . . . Crushed 3 | . . . . . . . . . . . . . . . . . . . 3 . . . Highest Temperature 503 | . 124 129 . 36 87 180 243 . 348 25 19 16 1 . 3 208 . 253 503 . . 225 Average Temperature 72 | . 30 35 . 13 19 61 89 . 154 8 5 5 1 . 2 37 . 145 124 . . 102 Received Heat Transfer 5191 | . 522 354 177 180 228 180 . . 173 639 156 323 85 18 348 78 . 66 1475 . . 189 Effects 5 | . . . . . . . . . . . . . . . . . . . 5 . . . Shutdowns 2 | . . . . . . . . . . . . . . . . . . . 2 . . . Damage (minor) 3 | . . . . . . . . . . . . . . . . . . . 3 . . . Siege Activations 6 | . . . . . . . . . . . . . . . . . . . 6 . . . Total Turns 118 | . . . . . . . . . . . . . . . . . . . 118 . . . Longest Duration 33 | . . . . . . . . . . . . . . . . . . . 33 . . . Robots Corrupted 1 | . . . . . . . . . 1 . . . . . . . . . . . . . Combat Hostiles 1 | . . . . . . . . . 1 . . . . . . . . . . . . . Parts Fried 3 | . . . . . 1 1 . . 1 . . . . . . . . . . . . . Impact Corruptions 10 | . . . . . 2 2 . . 3 2 . . . . . . . . 1 . . . Robots Melted 3 | . . 1 . 1 . . . . . . . . . . . . . . 1 . . . Combat Hostiles 3 | . . 1 . 1 . . . . . . . . . . . . . . 1 . . . Parts Melted 48 | . . 12 10 3 3 . . . . 1 . 1 . . . 2 . . 16 . . . Heat Transferred 20839 | . . 4699 2775 1258 1402 345 95 . 10 900 500 1350 450 . 325 1025 . 1450 4255 . . . Parts Sabotaged . | . . . . . . . . . . . . . . . . . . . . . . . Parts Stolen . | . . . . . . . . . . . . . . . . . . . . . . . Parts Stripped . | . . . . . . . . . . . . . . . . . . . . . . . Power Chain Reactions . | . . . . . . . . . . . . . . . . . . . . . . . Missiles Intercepted . | . . . . . . . . . . . . . . . . . . . . . . . Alert | -11 -10 -9 -9 -8 -7 -7 -7 -7 -7 -6 -6 -6 -6 -6 -6 -5 -4 -4 -3 -2 -2 -1 ------- Run | Scr Mat Mat Sto Mat Fac Low Low Zio Dee Pro Fac Ext Cet Arc Hub Fac Fac DSF Res Res DSF Acc Peak Influence 533 | . 319 441 283 212 359 . . . . . 288 327 461 261 275 434 182 317 533 285 240 392 Initial 285 | . . 68 4 38 50 . . . . . 88 140 120 184 91 124 182 127 166 285 225 132 Average 212 | . 165 278 145 74 200 . . . . . 128 173 290 212 162 234 182 219 354 285 229 253 Maximum Alert Level 2 | . 1 2 1 1 1 . . . . . 1 1 2 1 1 2 . 1 2 1 1 1 Low Security (%) 50 | 100 72 16 74 98 50 . . . . . 74 55 43 53 68 48 100 44 11 . . 40 Level 1 40 | . 27 72 25 1 49 . . . . . 25 44 21 46 31 43 . 55 49 100 100 60 Level 2 8 | . . 10 . . . . . . . . . . 35 . . 7 . . 39 . . . Level 3 . | . . . . . . . . . . . . . . . . . . . . . . . Level 4 . | . . . . . . . . . . . . . . . . . . . . . . . Level 5 . | . . . . . . . . . . . . . . . . . . . . . . . High Security . | . . . . . . . . . . . . . . . . . . . . . . . Max Security . | . . . . . . . . . . . . . . . . . . . . . . . Sterilizations 1 | . . . . . . . . . . . . . . . . . . 1 . . . . Squads Dispatched 38 | . 4 3 2 1 7 . . . . 1 . 2 . . 2 3 . 2 8 . 1 2 Investigation 18 | . 4 2 2 . 3 . . . . . . 2 . . 1 1 . . 1 . . 2 Extermination 9 | . . . . . 2 . . . . . . . . . . 2 . . 5 . . . Reinforcement 10 | . . 1 . 1 2 . . . . . . . . . 1 . . 2 2 . 1 . Assault 1 | . . . . . . . . . . 1 . . . . . . . . . . . . Garrison . | . . . . . . . . . . . . . . . . . . . . . . . Intercept . | . . . . . . . . . . . . . . . . . . . . . . . Searches Triggered . | . . . . . . . . . . . . . . . . . . . . . . . Construction Impeded . | . . . . . . . . . . . . . . . . . . . . . . . Haulers Reinforced 1 | . . . . . 1 . . . . . . . . . . . . . . . . . Active Scanning Responses . | . . . . . . . . . . . . . . . . . . . . . . . Cargo Convoy Interrupts . | . . . . . . . . . . . . . . . . . . . . . . . Stealth | -11 -10 -9 -9 -8 -7 -7 -7 -7 -7 -6 -6 -6 -6 -6 -6 -5 -4 -4 -3 -2 -2 -1 --------- Run | Scr Mat Mat Sto Mat Fac Low Low Zio Dee Pro Fac Ext Cet Arc Hub Fac Fac DSF Res Res DSF Acc Distress Signals 18 | . 2 4 3 1 . . . . . . . 2 2 . 1 . . . 2 . . 1 Communications Jammed 40 | . . . . . . . . . . . . . . . . 7 . . 33 . . . Distress Signals 40 | . . . . . . . . . . . . . . . . 7 . . 33 . . . Times Spotted 338 | . 16 30 17 8 18 10 3 . 46 17 7 24 16 7 11 15 . 11 46 1 4 31 Peak Tracking Total 37 | . 4 6 4 3 4 5 2 . 37 6 4 3 5 8 7 4 . 4 10 2 4 18 Tactical Retreats 12 | . 1 3 . . 2 . . . . . 1 . . 1 1 . . . . . . 3 Traps | -11 -10 -9 -9 -8 -7 -7 -7 -7 -7 -6 -6 -6 -6 -6 -6 -5 -4 -4 -3 -2 -2 -1 ------- Run | Scr Mat Mat Sto Mat Fac Low Low Zio Dee Pro Fac Ext Cet Arc Hub Fac Fac DSF Res Res DSF Acc Traps Triggered 12 | . 3 1 1 . . . . . . . . 1 . . . 1 . 1 2 . . 2 Indirectly . | . . . . . . . . . . . . . . . . . . . . . . . Trap Hack Attempts 18 | . . . 18 . . . . . . . . . . . . . . . . . . . Triggered . | . . . . . . . . . . . . . . . . . . . . . . . Disarmed . | . . . . . . . . . . . . . . . . . . . . . . . Reprogrammed 4 | . . . 4 . . . . . . . . . . . . . . . . . . . Reused 4 | . . . . . . . . . 4 . . . . . . . . . . . . . Traps Extracted 7 | . . . 4 . . . . . 1 2 . . . . . . . . . . . . Installed 5 | . . . . . . . . . 5 . . . . . . . . . . . . . Triggered 1 | . . . 1 . . . . . . . . . . . . . . . . . . . Most Traps Carried 4 | . . . 4 4 4 4 4 4 4 2 2 2 2 2 2 2 2 2 2 2 2 2 Machines | -11 -10 -9 -9 -8 -7 -7 -7 -7 -7 -6 -6 -6 -6 -6 -6 -5 -4 -4 -3 -2 -2 -1 ---------- Run | Scr Mat Mat Sto Mat Fac Low Low Zio Dee Pro Fac Ext Cet Arc Hub Fac Fac DSF Res Res DSF Acc Machines Disabled 35 | . . . 4 2 5 2 . . 3 1 4 5 3 . . 5 . . 1 . . . Max in Single Turn 4 | . . . 1 1 4 1 . . 1 1 2 1 . . . 1 . . 1 . . . Garrison Access 1 | . . . . . . . . . . . . . . . . . . . . 1 . . Machines Sabotaged . | . . . . . . . . . . . . . . . . . . . . . . . Overloaded Fab Kills . | . . . . . . . . . . . . . . . . . . . . . . . Hacking | -11 -10 -9 -9 -8 -7 -7 -7 -7 -7 -6 -6 -6 -6 -6 -6 -5 -4 -4 -3 -2 -2 -1 --------- Run | Scr Mat Mat Sto Mat Fac Low Low Zio Dee Pro Fac Ext Cet Arc Hub Fac Fac DSF Res Res DSF Acc Machines Accessed 61 | . 4 4 7 3 7 . . 1 . . 2 16 1 1 5 3 1 . 1 2 . 3 Terminals 48 | . 3 3 6 3 3 . . . . . 1 16 1 . 5 1 1 . 1 1 . 3 Fabricators 4 | . . . . . 1 . . . . . 1 . . . . 2 . . . . . . Repair Stations . | . . . . . . . . . . . . . . . . . . . . . . . Recycling Units 6 | . 1 1 1 . 3 . . . . . . . . . . . . . . . . . Scanalyzers . | . . . . . . . . . . . . . . . . . . . . . . . Garrison Access 1 | . . . . . . . . . . . . . . . . . . . . 1 . . Total Hacks 172 | . 5 13 18 13 19 . . 4 . . 4 32 3 25 11 9 4 . 2 3 . 7 Successful 93 | . 1 10 10 5 10 . . 4 . . 2 10 1 25 6 5 1 . . 2 . 1 Failed 79 | . 4 3 8 8 9 . . . . . 2 22 2 . 5 4 3 . 2 1 . 6 Catastrophic 7 | . . . . . 2 . . . . . . 3 . . . 1 . . . . . 1 Database Lockouts . | . . . . . . . . . . . . . . . . . . . . . . . Manual 64 | . 7 3 4 9 12 . . 5 . . . 7 1 . 11 5 . . . . . . Terminals 118 | . 4 12 15 13 11 . . . . . 1 32 3 . 11 1 4 . 2 2 . 7 Fabricators 16 | . . . . . 5 . . . . . 3 . . . . 8 . . . . . . Repair Stations . | . . . . . . . . . . . . . . . . . . . . . . . Recycling Units 8 | . 1 1 3 . 3 . . . . . . . . . . . . . . . . . Scanalyzers . | . . . . . . . . . . . . . . . . . . . . . . . Garrison Access 1 | . . . . . . . . . . . . . . . . . . . . 1 . . Terminal Hacks 64 | . . 7 8 3 3 . . 4 . . . 8 1 25 2 . 1 . . 1 . 1 Record 25 | . . . . . . . . . . . . . . 25 . . . . . . . . Part Schematic 6 | . . . . . 2 . . 4 . . . . . . . . . . . . . . Prototype ID Bank 1 | . . . 1 . . . . . . . . . . . . . . . . . . . Open Door 9 | . . . . . . . . . . . . 7 1 . . . . . . . . 1 Open DSF 2 | . . . . . . . . . . . . . . . . . 1 . . 1 . . Branch Access Points 2 | . . . . 1 1 . . . . . . . . . . . . . . . . . Emergency Access Points 4 | . . 1 3 . . . . . . . . . . . . . . . . . . . Terminal Index 2 | . . . . 1 . . . . . . . . . . 1 . . . . . . . Alert Level 3 | . . 2 1 . . . . . . . . . . . . . . . . . . . Unreport Threat 5 | . . 3 1 . . . . . . . . 1 . . . . . . . . . . Locate Traps 2 | . . 1 . 1 . . . . . . . . . . . . . . . . . . Zone Layout 3 | . . . 2 . . . . . . . . . . . 1 . . . . . . . Fabricator Hacks 9 | . . . . . 4 . . . . . 2 . . . . 3 . . . . . . Network Status 2 | . . . . . . . . . . . 1 . . . . 1 . . . . . . Load Schematic 4 | . . . . . 2 . . . . . 1 . . . . 1 . . . . . . Build 3 | . . . . . 2 . . . . . . . . . . 1 . . . . . . Repair Station Hacks . | . . . . . . . . . . . . . . . . . . . . . . . Recycling Unit Hacks 1 | . . . 1 . . . . . . . . . . . . . . . . . . . Retrieve Components 1 | . . . 1 . . . . . . . . . . . . . . . . . . . Scanalyzer . | . . . . . . . . . . . . . . . . . . . . . . . Garrison Access Hacks 1 | . . . . . . . . . . . . . . . . . . . . 1 . . Seal Access 1 | . . . . . . . . . . . . . . . . . . . . 1 . . Unauthorized Hacks 18 | . 1 3 1 2 3 . . . . . . 2 . . 4 2 . . . . . . Terminals 11 | . . 2 1 2 . . . . . . . 2 . . 4 . . . . . . . Assimilate 1 | . . . . . . . . . . . . 1 . . . . . . . . . . Botnet 5 | . . 1 . 1 . . . . . . . . . . 3 . . . . . . . Operators 4 | . . 1 1 1 . . . . . . . 1 . . . . . . . . . . Sabotage 1 | . . . . . . . . . . . . . . . 1 . . . . . . . Fabricators 2 | . . . . . . . . . . . . . . . . 2 . . . . . . Prioritize 1 | . . . . . . . . . . . . . . . . 1 . . . . . . Recompile 1 | . . . . . . . . . . . . . . . . 1 . . . . . . Repair Stations . | . . . . . . . . . . . . . . . . . . . . . . . Recycling Units 5 | . 1 1 . . 3 . . . . . . . . . . . . . . . . . Tunnel 5 | . 1 1 . . 3 . . . . . . . . . . . . . . . . . Scanalyzers . | . . . . . . . . . . . . . . . . . . . . . . . Garrison Access . | . . . . . . . . . . . . . . . . . . . . . . . Data Cores Recovered 1 | . . . 1 . . . . . . . . . . . . . . . . . . . Used . | . . . . . . . . . . . . . . . . . . . . . . . Hacking Detections 43 | . 3 3 6 3 4 . . . . . 2 11 . . 3 3 1 . 1 1 . 2 Full Trace Events 7 | . 1 . 1 . . . . . . . . 2 . . . . . . 1 . . 2 Feedback Events 1 | . . . . . . . . . . . . . . . . . . . . . . 1 Corruption 1 | . . . . . . . . . . . . . . . . . . . . . . 1 Feedback Blocked . | . . . . . . . . . . . . . . . . . . . . . . . Robot Schematics Acquired . | . . . . . . . . . . . . . . . . . . . . . . . Robots Built . | . . . . . . . . . . . . . . . . . . . . . . . Authchips . | . . . . . . . . . . . . . . . . . . . . . . . Time . | . . . . . . . . . . . . . . . . . . . . . . . Total Robot Build Rating . | . . . . . . . . . . . . . . . . . . . . . . . Part Schematics Acquired 6 | . . . . . 2 . . 4 . . . . . . . . . . . . . . Parts Built 4 | . . . . . 3 . . . . . . . . . . 1 . . . . . . Authchips 3 | . . . . . 2 . . . . . . . . . . 1 . . . . . . Time 215 | . . . . . 168 . . . . . . . . . . 47 . . . . . . Total Part Build Rating 16 | . . . . . 11 . . . . . . . . . . 5 . . . . . . Parts Repaired . | . . . . . . . . . . . . . . . . . . . . . . . Time . | . . . . . . . . . . . . . . . . . . . . . . . Parts Recycled . | . . . . . . . . . . . . . . . . . . . . . . . Recycled Matter . | . . . . . . . . . . . . . . . . . . . . . . . Retrieved Matter . | . . . . . . . . . . . . . . . . . . . . . . . Retrieved Components 2 | . . . 2 . . . . . . . . . . . . . . . . . . . Parts Scanalyzed . | . . . . . . . . . . . . . . . . . . . . . . . Part Schematics Acquired . | . . . . . . . . . . . . . . . . . . . . . . . Parts Damaged . | . . . . . . . . . . . . . . . . . . . . . . . Bothacking | -11 -10 -9 -9 -8 -7 -7 -7 -7 -7 -6 -6 -6 -6 -6 -6 -5 -4 -4 -3 -2 -2 -1 ------------ Run | Scr Mat Mat Sto Mat Fac Low Low Zio Dee Pro Fac Ext Cet Arc Hub Fac Fac DSF Res Res DSF Acc Used RIF Installer . | . . . . . . . . . . . . . . . . . . . . . . . Robots Hacked 1 | . . . 1 . . . . . . . . . . . . . . . . . . . Non-combat 1 | . . . 1 . . . . . . . . . . . . . . . . . . . Combat . | . . . . . . . . . . . . . . . . . . . . . . . Robot Hacks Applied 1 | . . . 1 . . . . . . . . . . . . . . . . . . . parse_system 1 | . . . 1 . . . . . . . . . . . . . . . . . . . Relay Couplers Released . | . . . . . . . . . . . . . . . . . . . . . . . Fabnet Peak Effective % . | . . . . . . . . . . . . . . . . . . . . . . . Robots Rewired 8 | . . . . . . 4 . . . . . 4 . . . . . . . . . . Allies Hacked 3 | . . . . . . . . . . . . . . . . 3 . . . . . . Hacks Repelled . | . . . . . . . . . . . . . . . . . . . . . . . Allies | -11 -10 -9 -9 -8 -7 -7 -7 -7 -7 -6 -6 -6 -6 -6 -6 -5 -4 -4 -3 -2 -2 -1 -------- Run | Scr Mat Mat Sto Mat Fac Low Low Zio Dee Pro Fac Ext Cet Arc Hub Fac Fac DSF Res Res DSF Acc Total Allies 33 | . . . 1 . . 4 . . . . . 19 3 . . 6 . . . . . . Largest Group 9 | . . . 1 1 . 3 3 1 1 . . 9 9 5 1 6 . . . . . . Highest-Rated Group 495 | . . . 100 100 . 60 56 20 20 . . 381 495 392 8 186 . . . . . . Highest-Rated Ally 159 | . . . 100 100 . 20 20 20 20 . . 159 159 153 8 31 . . . . . . Total Orders . | . . . . . . . . . . . . . . . . . . . . . . . Ally Attacks 262 | . . . 20 . . 6 5 . 8 . . 103 78 8 . 34 . . . . . . Total Damage 6937 | . . . 722 . . 148 62 . 532 . . 2192 2447 393 . 441 . . . . . . Kills 54 | . . . 10 . . 1 1 . 7 . . 14 13 3 . 5 . . . . . . Allies Corrupted 1 | . . . . . . . . . 1 . . . . . . . . . . . . . Allies Melted 2 | . . . . . . . . . . . . 1 . 1 . . . . . . . . Intel | -11 -10 -9 -9 -8 -7 -7 -7 -7 -7 -6 -6 -6 -6 -6 -6 -5 -4 -4 -3 -2 -2 -1 ------- Run | Scr Mat Mat Sto Mat Fac Low Low Zio Dee Pro Fac Ext Cet Arc Hub Fac Fac DSF Res Res DSF Acc Robot Analysis Total . | . . . . . . . . . . . . . . . . . . . . . . . Derelict Logs Recovered 6 | . . . . . . 1 1 2 . 2 . . . . . . . . . . . . Drone Launches . | . . . . . . . . . . . . . . . . . . . . . . . Drone Recoveries . | . . . . . . . . . . . . . . . . . . . . . . . Exploration | -11 -10 -9 -9 -8 -7 -7 -7 -7 -7 -6 -6 -6 -6 -6 -6 -5 -4 -4 -3 -2 -2 -1 ------------- Run | Scr Mat Mat Sto Mat Fac Low Low Zio Dee Pro Fac Ext Cet Arc Hub Fac Fac DSF Res Res DSF Acc Turns Passed 16499 | 8 629 1035 1378 537 1141 954 454 1299 2348 960 724 1375 384 90 302 574 151 324 1538 46 18 230 Spaces Moved 7459 | 5 363 353 530 271 650 583 291 809 905 266 155 523 159 50 144 207 53 80 433 42 36 551 Core 76 | . . . . . . . . . . . . . . . . . . . . . . 76 Treads 354 | . . 1 . . 3 . . . 124 . . . . . . . . . 226 . . . Legs 1915 | . . . . . . . . . 71 266 155 523 159 50 144 207 53 80 207 . . . Wheels 4561 | 5 363 352 530 271 647 583 291 809 710 . . . . . . . . . . . . . Hover . | . . . . . . . . . . . . . . . . . . . . . . . Flight 553 | . . . . . . . . . . . . . . . . . . . . 42 36 475 Fastest Speed 32 | 100 95 195 195 150 145 145 145 160 145 210 210 183 183 183 183 185 183 183 170 42 37 32 Average Speed 166 | 100 116 203 207 152 147 145 150 160 174 210 220 213 183 183 183 215 183 230 236 42 40 37 Slowest Speed 560 | 100 200 480 210 210 560 145 160 160 320 210 226 226 183 183 210 242 183 300 400 42 42 50 Overloaded Moves . | . . . . . . . . . . . . . . . . . . . . . . . Propulsion Burnouts . | . . . . . . . . . . . . . . . . . . . . . . . Robots Hopped 13 | . . . . . . . . . . . . . . . . . . . . . 1 12 Cave-ins Triggered . | . . . . . . . . . . . . . . . . . . . . . . . Exploration Rate (%) 41 | 2 53 33 64 27 21 64 53 85 84 47 7 76 72 66 22 12 3 69 16 2 47 21 Regions Visited 22 Branch Regions 10 Pre-discovered Areas 7 | . 1 1 . . 3 . . 2 . . . . . . . . . . . . . . Known Exits Taken 11 | . . 1 1 . 1 . . . . 1 1 1 1 1 1 . 1 . . 1 . . Unknown Exits Taken 9 | 1 1 . . 1 . 1 1 1 1 . . . . . . 1 . . 1 . . . Scrap Searched 10 | . . . . . . 4 . 4 . 2 . . . . . . . . . . . . Spaces Dug 145 | . . . 1 . . 17 . . 40 2 46 . . . 3 36 . . . . . . Terrain Destroyed 562 | . . 18 1 26 62 56 24 . 94 79 47 10 2 . 3 43 . 12 85 . . . Melee 2 | . . . 1 . . 1 . . . . . . . . . . . . . . . . Projectile 119 | . . . . 15 . . . . . 8 10 10 2 . 3 24 . 12 35 . . . AOE 441 | . . 18 . 11 62 55 24 . 94 71 37 . . . . 19 . . 50 . . . Terrain Rammed . | . . . . . . . . . . . . . . . . . . . . . . . Walls Destroyed . | . . . . . . . . . . . . . . . . . . . . . . . Machines Disabled . | . . . . . . . . . . . . . . . . . . . . . . . Actions | -11 -10 -9 -9 -8 -7 -7 -7 -7 -7 -6 -6 -6 -6 -6 -6 -5 -4 -4 -3 -2 -2 -1 --------- Run | Scr Mat Mat Sto Mat Fac Low Low Zio Dee Pro Fac Ext Cet Arc Hub Fac Fac DSF Res Res DSF Acc Total 10335 | 8 481 517 689 343 772 650 299 814 1587 610 509 708 233 49 165 269 108 145 710 73 36 560 Wait 1563 | . 45 47 6 13 24 3 . . 517 287 317 106 58 . . . 45 2 71 21 . 1 Move 7413 | 4 362 352 529 270 649 582 290 808 904 265 154 522 158 49 143 206 53 79 432 41 33 528 Hop 12 | . . . . . . . . . . . . . . . . . . . . . 1 11 Pick Up 137 | . 11 15 24 10 15 2 1 6 15 1 6 1 4 . . 5 1 3 12 1 . 4 Fast Attach 78 | . 2 4 6 2 11 5 . . 13 3 1 1 1 . . . 3 1 18 . 2 5 Attach 90 | 2 4 3 4 4 9 6 . . 8 5 4 1 . . 3 7 . 2 21 3 . 4 Detach 10 | . . . . . 2 . . . 1 2 2 . . . . 1 . . 1 . . 1 Swap 83 | . 2 13 10 3 4 10 3 . 21 5 1 7 . . 1 2 . . 1 . . . Drop 163 | 2 2 8 26 9 22 6 . . 35 3 8 4 2 . 3 6 6 2 8 7 . 4 Fire 674 | . 53 75 61 32 32 14 4 . 48 36 16 48 10 . 12 42 . 55 136 . . . Melee 42 | . . . 5 . 4 7 . . 20 2 . . . . . . . . 4 . . . Ram 2 | . . . . . . . . . . . . . . . . . . . . . . 2 Kick 7 | . . . . . . . . . . 1 . 2 . . 3 . . . 1 . . . Crush 5 | . . . . . . . . . . . . . . . . . . . 5 . . . Escape Stasis 5 | . . . . . . . . . . . . 5 . . . . . . . . . . Rewire 28 | . . . . . . 15 1 . . . . 11 . . . . . 1 . . . . Trap 23 | . . . 18 . . . . . 5 . . . . . . . . . . . . . Miscellaneous . | . . . . . . . . . . . . . . . . . . . . . . . Route ------- -11/Scrapyard -10/Materials (discovered 2 exits: *Mat / [*Min]) -9/Materials (discovered 4 exits: *Mat / *Min x2 / *Sto) -9/Storage -8/Materials -7/Factory (discovered 2 exits: *Low x2) -7/Lower Caves -7/Lower Caves (discovered 2 exits: *Fac / *Zio) -7/Zion (discovered 2 exits: [*Dee] / [*Pro]) -7/Deep Caves -6/Proximity Caves -6/Factory (discovered 3 exits: Low / *Ext x2) -6/Extension (discovered 3 exits: *Fac x2 / *Cet) -6/Cetus (discovered 2 exits: *Fac / *Arc) -6/Archives -6/Hub_04(d) -5/Factory -4/Factory -4/DSF -3/Research -2/Research -2/DSF -1/Access History --------- Turn | Location | Event 4 | -11/Scrapyard | Discovered new exit (range 3) 9 | -11/Scrapyard | Entered Materials 106 | -10/Materials | Core integrity fell below 50% 303 | -10/Materials | Build established: Mutant 345 | -10/Materials | Discovered new exit (range 16) 566 | -10/Materials | Discovered new exit (range 13) 638 | -10/Materials | Entered another Materials area 638 | -9/Materials | Evolved 2 slots: Utility x2 695 | -9/Materials | Discovered new exit (range 13) 828 | -9/Materials | Identified exit to Mines 947 | -9/Materials | Discovered new exit (range 7) 960 | -9/Materials | Identified exit to Materials 1360 | -9/Materials | Discovered new exit (range 13) 1476 | -9/Materials | Build established: Scavenger-Mutant 1477 | -9/Materials | Identified exit to Storage 1563 | -9/Materials | Discovered exit to Mines (range 13) 1673 | -9/Materials | Entered Storage 2060 | -9/Storage | Met 01-MTF 2216 | -9/Storage | Build established: Mutant 2611 | -9/Storage | Discovered exit to Materials (range 10) 2650 | -9/Storage | Found Prototype Processor 3051 | -9/Storage | Entered Materials 3051 | -8/Materials | Accompanied by 1 ally (01-MTF) 3051 | -8/Materials | Evolved 2 slots: Propulsion x1, Utility x1 3056 | -8/Materials | 01-MTF left 3333 | -8/Materials | Build established: Scavenger-Mutant 3457 | -8/Materials | Discovered new exit (range 8) 3588 | -8/Materials | Entered Factory 3588 | -7/Factory | Evolved 2 slots: Power x1, Utility x1 3905 | -7/Factory | Destroyed 7 combat bots 3972 | -7/Factory | Lost 3 parts (1n2w) 4256 | -7/Factory | Found Prototype Launcher 4256 | -7/Factory | Identified Rocket Array 4465 | -7/Factory | Identified exit to Lower Caves 4543 | -7/Factory | Fabricated Adv. Sensor Array (x1) 4624 | -7/Factory | Fabricated Imp. Signal Interpreter? 4729 | -7/Factory | Entered Lower Caves 4821 | -7/Lower Caves | Encountered a Warlord checkpoint 5004 | -7/Lower Caves | Learned location of 1 exit from Proximity Caves 5187 | -7/Lower Caves | Ambushed by wild Derelicts 5246 | -7/Lower Caves | Lost 4 parts (1p2u1w) 5408 | -7/Lower Caves | Attacked by a delusional Derelict stockpiling Unaware 5425 | -7/Lower Caves | Identified Exp. Targeting Computer 5448 | -7/Lower Caves | Lost 3 parts (2n1u) 5504 | -7/Lower Caves | Build established: Mutant 5589 | -7/Lower Caves | Attracted the attention of an 0b10 outpost 5664 | -7/Lower Caves | Discovered new exit (range 11) 5683 | -7/Lower Caves | Entered another Lower Caves area 5683 | -7/Lower Caves | Accompanied by 3 allies 5741 | -7/Lower Caves | Discovered new exit (range 14) 5888 | -7/Lower Caves | Learned 12 Factory zone layouts 6113 | -7/Lower Caves | Discovered new exit (range 16) 6137 | -7/Lower Caves | Entered Zion 6137 | -7/Zion | Accompanied by 1 ally 6228 | -7/Zion | Build established: Scavenger-Mutant 6321 | -7/Zion | Discovered new exit (range 15) 6335 | -7/Zion | Acquired unknown access codes intercepted by a Zionite 6372 | -7/Zion | System corruption cleaned by Quarantine Array 6588 | -7/Zion | Received a visual enhancement algorithm 6635 | -7/Zion | Found Prototype Device 6697 | -7/Zion | Learned 4 Factory zone layouts 7125 | -7/Zion | Found CR-A16's Pointy Stick 7262 | -7/Zion | Learned Factory repair station intel 7365 | -7/Zion | Found GAL Module 7407 | -7/Zion | Opened final containment barrier to the Deep Caves 7433 | -7/Zion | Discovered new exit (range 3) 7433 | -7/Zion | Saw the warning signs outside the Deep Caves entrance 7436 | -7/Zion | Entered Deep Caves 7436 | -7/Deep Caves | Accompanied by 1 ally 7819 | -7/Deep Caves | Attacked by Z-Imprinter 7835 | -7/Deep Caves | Destroyed Z-Imprinter 7892 | -7/Deep Caves | Found Prototype Protection 7892 | -7/Deep Caves | Identified Zio. Weapon Casing 8065 | -7/Deep Caves | Z-Facility disabled 8161 | -7/Deep Caves | Build established: Mutant 8550 | -7/Deep Caves | Discovered new exit (range 7) 8695 | -7/Deep Caves | Destroyed as-23923 8922 | -7/Deep Caves | Triggered Deep Caves wall 8922 | -7/Deep Caves | Spotted AS-12969 8922 | -7/Deep Caves | Spotted AS-76306 8926 | -7/Deep Caves | Destroyed AS-76306 8929 | -7/Deep Caves | Core integrity fell below 50% 8935 | -7/Deep Caves | Destroyed AS-12969 8952 | -7/Deep Caves | Destroyed 33 combat bots 8984 | -7/Deep Caves | Lost 3 parts (1p1n1u) 9043 | -7/Deep Caves | Exposed GOLEM chamber 9061 | -7/Deep Caves | Found GOLEM Unit 9067 | -7/Deep Caves | Found GOLEM Unit 9083 | -7/Deep Caves | Found GOLEM Unit 9403 | -7/Deep Caves | Build established: Golem 9784 | -7/Deep Caves | Entered Proximity Caves 9785 | -6/Proximity Caves | Identified exit to Factory 9875 | -6/Proximity Caves | Learned location of 1 exit from Factory 9959 | -6/Proximity Caves | Learned Factory terminal intel 10147 | -6/Proximity Caves | Received a Behemoth hack from an annoying Tinkerer 10353 | -6/Proximity Caves | Attracted the attention of an 0b10 outpost 10359 | -6/Proximity Caves | Core integrity fell below 20% 10744 | -6/Proximity Caves | Entered Factory 10744 | -6/Factory | Evolved 2 slots: Utility x2 10745 | -6/Factory | Identified exit to Extension 10746 | -6/Factory | Identified exit to Lower Caves 10747 | -6/Factory | Loaded intel: 27 terminal locations 10748 | -6/Factory | Loaded intel: 6 repair station locations 11468 | -6/Factory | Entered Extension 11598 | -6/Extension | Rescued a captive Derelict 11598 | -6/Extension | Rescued a captive Derelict 11609 | -6/Extension | Rescued a captive Derelict 11676 | -6/Extension | Rescued a captive Derelict 11900 | -6/Extension | Rescued a captive Derelict 11958 | -6/Extension | Rescued a captive Derelict 11959 | -6/Extension | Rescued a captive Derelict 11968 | -6/Extension | Rescued a captive Derelict 12037 | -6/Extension | Rescued a captive Derelict 12038 | -6/Extension | Rescued a captive Derelict 12157 | -6/Extension | Spotted B-75 Beast 12168 | -6/Extension | Spotted B-75 Beast 12195 | -6/Extension | Destroyed B-75 Beast 12243 | -6/Extension | Destroyed B-75 Beast 12250 | -6/Extension | Discovered new exit (range 14) 12334 | -6/Extension | Rescued a captive Derelict 12389 | -6/Extension | Rescued A7 12555 | -6/Extension | Rescued a captive Derelict 12558 | -6/Extension | Rescued a captive Derelict 12806 | -6/Extension | Discovered new exit (range 10) 12808 | -6/Extension | Discovered new exit (range 6) 12826 | -6/Extension | Identified exit to Factory 12838 | -6/Extension | Identified exit to Cetus 12843 | -6/Extension | Entered Cetus 12843 | -6/Cetus | Accompanied by 9 allies (A7) 12848 | -6/Cetus | Acquired a Cetus Manufacturing Module code from A7 12867 | -6/Cetus | Spotted Cetus Guard 12867 | -6/Cetus | Spotted Cetus Guard 12871 | -6/Cetus | Spotted Cetus Guard 12874 | -6/Cetus | Spotted Cetus Guard 12884 | -6/Cetus | Allies destroyed Cetus Guard 12886 | -6/Cetus | Allies destroyed Cetus Guard 12893 | -6/Cetus | Allies destroyed Cetus Guard 12898 | -6/Cetus | Destroyed Cetus Guard 12965 | -6/Cetus | Started Cetus Manufacturing Module 12977 | -6/Cetus | Escorted A7 to Cetus Mainframe 12990 | -6/Cetus | Manufactured an Enhanced Grunt 13015 | -6/Cetus | Manufactured an Enhanced Grunt 13030 | -6/Cetus | Discovered new exit (range 16) 13040 | -6/Cetus | Manufactured an Enhanced Grunt 13043 | -6/Cetus | Cetus Manufacturing Module disabled 13066 | -6/Cetus | Spotted Cetus Guard 13066 | -6/Cetus | Spotted Cetus Guard 13068 | -6/Cetus | Spotted Cetus Guard 13071 | -6/Cetus | Allies destroyed Cetus Guard 13071 | -6/Cetus | Spotted Cetus Guard 13083 | -6/Cetus | Discovered exit to Factory (range 15) 13090 | -6/Cetus | Allies destroyed Cetus Guard 13091 | -6/Cetus | Allies destroyed Cetus Guard 13093 | -6/Cetus | Allies destroyed Cetus Guard 13103 | -6/Cetus | Met Revision 17 13177 | -6/Cetus | Identified exit to Archives 13227 | -6/Cetus | Entered Archives 13227 | -6/Archives | Accompanied by 5 allies (A7) 13232 | -6/Archives | Received a hacking code to weaken MAIN.C 13249 | -6/Archives | Met Zhirov 13255 | -6/Archives | Reinforcements dispatched to Archives 13259 | -6/Archives | Unable to access archive contents 13288 | -6/Archives | Read partially decrypted archive contents 13295 | -6/Archives | Discovered new exit (range 13) 13300 | -6/Archives | Reinforcements dispatched to Archives 13302 | -6/Archives | Zhirov warped through subspace 13315 | -6/Archives | Identified exit to Hub_04(d) 13317 | -6/Archives | Entered Hub_04(d) 13317 | -6/Hub_04(d) | Accompanied by 1 ally 13559 | -6/Hub_04(d) | Discovered exit to Factory (range 20) 13619 | -6/Hub_04(d) | Entered Factory 13619 | -5/Factory | Evolved 2 slots: Power x1, Propulsion x1 13647 | -5/Factory | Lost 3 parts (1n2u) 13964 | -5/Factory | Fabricated Adv. Sensor Array (x1) 13983 | -5/Factory | Spotted B-75 Beast 14019 | -5/Factory | Destroyed B-75 Beast 14042 | -5/Factory | Lost 4 parts (1n2u1w) 14125 | -5/Factory | Allied Derelicts emerged from ambush trap array 14127 | -5/Factory | Allied Derelicts emerged from ambush trap array 14160 | -5/Factory | Discovered new exit (range 12) 14176 | -5/Factory | P-70 Sage assimilated allied MM-8EX(g) 14193 | -5/Factory | Entered another Factory area 14193 | -4/Factory | Evolved 2 slots: Utility x2 14344 | -4/Factory | Identified exit to DSF 14344 | -4/Factory | Entered DSF 14384 | -4/DSF | Additional patrols routed to DSF 14413 | -4/DSF | Lost 3 parts (3n) 14611 | -4/DSF | Sterilization system engaged 14623 | -4/DSF | Discovered new exit (range 16) 14631 | -4/DSF | Ambient heat levels rising (+10) 14646 | -4/DSF | Ambient heat levels rising (+10) 14661 | -4/DSF | Ambient heat levels rising (+10) 14668 | -4/DSF | Entered Research 14668 | -3/Research | Evolved 2 slots: Utility x2 14991 | -3/Research | Lost 3 parts (1p1u1w) 15091 | -3/Research | Lost 6 parts (2p3u1w) 15345 | -3/Research | Lost 9 parts (1p3n3u2w) 15413 | -3/Research | Build established: Scavenger-Mutant 15479 | -3/Research | Lost 3 parts (3u) 15625 | -3/Research | Lost 5 parts (3p2u) 15714 | -3/Research | Lost 3 parts (2n1w) 15717 | -3/Research | Core integrity fell below 50% 15759 | -3/Research | Found Antimissile System 15838 | -3/Research | Found Fusion Bomb Launcher 15970 | -3/Research | System corruption reached 10% 16049 | -3/Research | Lost 12 parts (3p1n3u5w) 16169 | -3/Research | Discovered new exit (range 16) 16206 | -3/Research | Entered another Research area 16206 | -2/Research | Evolved 2 slots: Propulsion x2 16252 | -2/Research | Identified exit to DSF 16252 | -2/Research | Entered DSF 16265 | -2/DSF | Discovered new exit (range 13) 16270 | -2/DSF | Entered Access 16270 | -1/Access | Evolved 2 slots: Propulsion x2 16412 | -1/Access | Lost 6 parts (1p3n2u) 16482 | -1/Access | Core integrity fell below 50% 16491 | -1/Access | Core integrity fell below 20% 16493 | -1/Access | System corruption reached 10% 16500 | -1/Access | Destroyed by G-73 Enforcer with Phase Gun Last Messages --------------- 16488_ Acquired 3 matter. 16489_ Acquired 25 matter. 16490_ Penetrated by Slug. 16491_ Slug penetrates Wall. 16491_ Penetrated by Slug. 16492_ R-10 Processor collects Wheel. 16493_ Penetrated by Slug. 16493_ R-10 Processor suffers critical hit (Destroy). 16493_ R-10 Processor destroyed. 16496_ Acquired Xenon Bombardment Thruster. 16497_ Penetrated by Slug. 16497_ Slug penetrates M-36 Artificer. 16497_ Imp. Launcher Guidance Computer destroyed. 16498_ Xenon Bombardment Thruster destroyed. 16498_ Critical hit (Burn: +37). 16499_ P-80 Master resets U-05 Engineer, system corruption cleaned. 16499_ Slammed into G-73 Enforcer. 16499_ Adv. Target Analyzer destroyed. 16499_ System corrupted by crushing effect (+1). [Achievement: I Was Wrong!] Map ----- +----------------------------------------------------+ | ?????????????????????????????????????????????????? | | ?????????????????????????????????????????????????? | | ?????????????????????????????????????????????????? | | ?????????????????????????????????????????????????? | | ?????????????????????????????????????????????????? | | ?????????????????????????????????????????????? ? | | ????????????????????????????????????????????? ? | | ????????????????????????????????????????????? ? | | ????????????????????????????????????????????? # | | ???????????????? ??? ??????????????????????? # | | ?????????????????????????????????????????????# # | | ?????????????????????????????????????????????# # | | ??????????????????????????????????? ?????????# # | | ?????????????? ?????????????????????? ???????# # | | ?????????????? ?????????#????????????????# # | | ????????????? ?????#?#???????????????#?# # | | ???????????G"" ? ???????????????????????# # | | ??????????? ????????????????????????## # | | ???? ?????? ??????????????????#??#???# # | | ??????????? ?????????????????????????# # | | ????????????? ?????????????????#???????# # | | ??????????????# ! ???????????????????????# # | | ??????#?????? + ????#?????#????????#????# # | | ??????????? ??# ?????#????????????#????# % # | | ??????????????# ######################## # | | ????????????? # g @ %= =! u | | ???????????? + gggg =!=%=m | | #?????????????# ######/########################## | | ???#??#?????? # + ##??????????##?????? | | ??????????????# # #?#????????????#??#? | | ???? ? ???? # # #??????????????????? | | ??????????????# # #??????????????????? | | ??????????????+ # "" ##??#??????????????? | | ???????######### # "" #???????????????#??? | | ???????# # # """""" #??????????????????? | | ???#??## + # """""" #??????????????????? | | ???# ?## * # # "" #????#?????????????? | | ???# ?# !# # "" #??????????????????? | | ???# #####+#### # ? ? ##???####??????????? | | #### #??# # ???? #??????????????????? | | + ####?## #####??#??#####?????????????????? | | ####+###+#####?# #???????????????????????????????? | | # ### #???? ?? ?? ??#??#??????????????? | | # #?? ??????????????#?????????????????? | | # #?? ????????? ??????????????????????? | | # ##? ????????? ? ????????????????????? | | # ! " #?? ????? #?????????????????????????? | | # """ #?? ??? ????????????????????????????? | | # """#?? ????#???????????????????????????? | | / " #?? ????????????????????????????????? | +----------------------------------------------------+ Best States ------------- Heat Dissipation 102 Energy Generation 65 Energy Capacity 2060 Matter Stores 300 Matter Capacity 300 Sight Range 16 Robot Scan Range 16 Terrain Scan Range 20 Terrain Scan Density 85 Jamming Range 12 Power Amplification 20 Additional Mass Support 20 Armor Coverage 700 Resistance: KI 30 Resistance: TH 15 Resistance: EX 15 Resistance: EM 15 Resistance: I 15 Resistance: S 15 Resistance: P 15 Weapon Shielding 100 Point Defense Rating 240 Phase Shifting 10 Evasion (%) 63 Targeting Accuracy 20 Launcher Accuracy 30 Target Analysis 12 Core Analysis 8 Recoil Reduction 4 Energy Filtering 30 Particle Charging 20 Offensive Hacking 20 Defensive Hacking 12 Authchip Count 3 Trap Extractor Capacity 4 Item Schematics ----------------- Adv. Sensor Array | -7/Factory | Hacked Imp. Signal Interpreter | -7/Factory | Hacked Hvy. Riot Gun | -7/Zion | Free Battle Rifle | -7/Zion | Free Flamer | -7/Zion | Free Plasma Flamer | -7/Zion | Free Robot Schematics ------------------ None Fabricated ------------ Adv. Sensor Array | x1 | -7/Factory | Authchip Imp. Signal Interpreter | x2 | -7/Factory | Authchip Adv. Sensor Array | x1 | -5/Factory | Authchip Alien Tech Used ----------------- None Achievements -------------- I Was Wrong! Challenges ------------ None Game ------ Seed LightFusionGun Manual? 0 Play Time 02:15:21 Cumulative 203.5 hours Start 2023.01.16 @ 20:07:23 End 2023.01.21 @ 00:53:41 Sessions 5 Manual Loads 0 Difficulty Rogue Special Mode None Game No. 277 Rogue 277 Adventurer 0 Explorer 0 Win Type - Total 5 Types 1/0/3/0/0/0/1/0/0 Lore% 75 Gallery% 84 Achievement% 65 Wizard Run 0 Options --------- ASCII 0 Keyboard 0 Movement Numpad Keybinds 0 Fullscreen 1 Font 18/SmallcapsGlow Map View 76x50 Tactical HUD 1 Map Filters NONE Filters NONE Steam 1 RUN: 35c809a8-01ca-4436-a7e2-00dd15cff633